fUST/lending_fUST_20251025
["ID","MTS","AMOUNT","RATE_DAILY","PERIOD"]
[392296317,1761321638502,690.82752106,0.00018772,2]
[392296320,1761321947907,666.0,0.00018344,2]
[392296321,1761322111676,204.110376,0.00030137,120]
[392296322,1761322143849,100000.0,0.000191,4]
[392296323,1761322187330,1000.0,0.00019068,5]
[392296368,1761322232457,-168.00000001,0.000189,2]
[392296370,1761322232467,-200.0,0.00018968,2]
[392296371,1761322232476,-1906.69078722,0.00018987,2]
[392296373,1761322232486,-374.37653111,0.00019003,2]
[392296375,1761322232495,-119867.85796304,0.000193,2]
[392296707,1761322238210,-3565.49478686,0.000193,2]
[392296709,1761322238223,-716.96327769,0.000193,2]
[392296711,1761322238236,-1306.98096118,0.000193,2]
[392297296,1761322246430,-356.32752106,0.000193,2]
[392297313,1761322246630,-7379.41174361,0.000193,2]
[392299039,1761322264995,1143.469256,0.00013699,2]
[392301116,1761322287012,-720.0,0.00021753,20]
[392302346,1761322300991,-500.0,0.00019273,2]
[392302350,1761322301015,-233.86066332,0.00019299,2]
[392302353,1761322301037,-300.0,0.00019299,2]
[392302383,1761322301304,-500.0,0.00019299,2]
[392302386,1761322301326,-500.0,0.00019299,2]
[392302389,1761322301347,-500.0,0.00019299,2]
[392302393,1761322301369,-500.0,0.00019299,2]
[392302396,1761322301390,-500.0,0.00019299,2]
[392302399,1761322301411,-650.0,0.00019299,2]
[392302402,1761322301433,-500.0,0.00019299,2]
[392302405,1761322301455,-500.0,0.00019299,2]
[392302409,1761322301477,-500.0,0.00019299,2]
[392302412,1761322301498,-464.15046968,0.00019299,2]
[392302415,1761322301519,-500.0,0.00019299,2]
[392302419,1761322301540,-500.0,0.00019299,2]
[392302422,1761322301562,-500.0,0.00019299,2]
[392302425,1761322301583,-500.0,0.00019299,2]
[392302428,1761322301605,-184.05886023,0.00019299,2]
[392302431,1761322301625,-68947.93000677,0.000193,2]
[392307960,1761322507376,251.8586999,0.00030136,120]
[392307961,1761322507408,1725.1413001,0.00030136,120]
[392307962,1761322788221,324.16870511,0.0003013,120]
[392307965,1761322868524,434.6431,0.00018271,2]
[392307966,1761323045438,5000.0,0.00018772,2]
[392307967,1761323053641,381.57400897,0.00018772,2]
[392307968,1761323070015,5000.0,0.00018772,2]
[392307969,1761323093713,2191.99928972,0.00018772,2]
[392307983,1761323163185,1121.49692317,0.00018772,2]
[392307984,1761323195209,1121.50692317,0.00018772,2]
[392307985,1761323203402,5000.0,0.00018772,2]
[392307986,1761323209026,279.07,0.00030137,120]
[392307987,1761323212356,5000.0,0.00018772,2]
[392307988,1761323221059,3878.49307683,0.00018772,2]
[392307989,1761323237378,3878.50307683,0.00018772,2]
[392307999,1761323268674,70092.50805547,0.00018,2]
[392308000,1761323311615,24862.10573467,0.00017,2]
[392308002,1761323315619,589.02977557,0.000149,2]
[392308003,1761323315759,1000.0,0.0001,2]
[392308004,1761323316541,22685.52644702,0.00018,2]
[392308008,1761323373845,300.0,0.00018,2]
[392308009,1761323386340,153.4824678,0.00018,2]
[392308010,1761323386364,146.5175322,0.00018,2]
[392308011,1761323399536,300.0,0.00018,2]
[392308012,1761323413510,300.0,0.00018,2]
[392308013,1761323417862,300.0,0.00018,2]
[392308016,1761323426100,300.0,0.00018,2]
[392308026,1761323432390,300.0,0.00018,2]
[392308037,1761323432484,-366.88900049,0.00018951,2]
[392308039,1761323432494,-150.0,0.00019105,2]
[392308041,1761323432503,-981.38052838,0.00019205,2]
[392308046,1761323432542,-474.08125622,0.00019205,2]
[392308048,1761323432553,-103.23881755,0.00019205,2]
[392308050,1761323432563,-494.3325976,0.00019205,2]
[392308052,1761323432572,-494.33259758,0.00019254,2]
[392308054,1761323432582,-261.0,0.00019272,2]
[392308056,1761323432592,-300.0,0.00019272,2]
[392308058,1761323432602,-300.0,0.00019272,2]
[392308060,1761323432611,-502.18676069,0.00019273,2]
[392308063,1761323432620,-500.0,0.00019273,2]
[392308065,1761323432630,-500.0,0.00019273,2]
[392308066,1761323432639,-505.47885627,0.00019273,2]
[392308069,1761323432648,-500.0,0.00019273,2]
[392308071,1761323432658,-500.0,0.00019273,2]
[392308073,1761323432667,-500.0,0.00019273,2]
[392308074,1761323432677,-224.40394054,0.00019288,2]
[392308076,1761323432686,-1000.0,0.00019288,2]
[392308079,1761323432696,-1000.0,0.00019288,2]
[392308081,1761323432706,-1000.0,0.00019288,2]
[392308082,1761323432715,-1000.0,0.00019288,2]
[392308084,1761323432725,-1066.8270085,0.00019288,2]
[392308086,1761323432735,-151.0,0.00019288,2]
[392308089,1761323432744,-274.06367726,0.00019288,2]
[392308090,1761323432754,-823.74,0.0001929,3]
[392308093,1761323432763,-411.87,0.0001929,3]
[392308094,1761323432772,-205.94,0.0001929,3]
[392308096,1761323432781,-617.82,0.0001929,3]
[392308098,1761323432791,-500.0,0.00019298,2]
[392308100,1761323432800,-500.0,0.00019299,2]
[392308102,1761323432809,-500.0,0.00019299,2]
[392308103,1761323432819,-500.0,0.00019299,2]
[392308104,1761323432828,-500.0,0.00019299,2]
[392308106,1761323432837,-500.0,0.00019299,2]
[392308107,1761323432846,-500.0,0.00019299,2]
[392308108,1761323432856,-500.0,0.00019299,2]
[392308109,1761323432866,-298.00855773,0.00019299,2]
[392308110,1761323432876,-146974.14393616,0.000193,2]
[392308111,1761323432889,-858.12873,0.000193,2]
[392308118,1761323438244,-500.0,0.00019288,2]
[392308119,1761323438254,-2025.41,0.000193,2]
[392308121,1761323438303,-733.86066332,0.000193,2]
[392308122,1761323438316,-50220.16244909,0.000193,2]
[392308133,1761323440097,300.0,0.00018,2]
[392308156,1761323444570,-26770.29358668,0.000193,2]
[392308157,1761323444581,-7776.0,0.000193,2]
[392308158,1761323445686,300.0,0.00018,2]
[392308162,1761323446553,-12159.38354648,0.000193,2]
[392308163,1761323446565,-30791.08592525,0.000193,2]
[392308164,1761323446576,-638.95627875,0.000193,2]
[392308165,1761323446597,-614.96212155,0.000193,2]
[392308166,1761323452412,300.0,0.00018,2]
[392308169,1761323886021,280.40467172,0.00018398,6]
[392308171,1761323938570,500.0,0.00030136,120]
[392308172,1761323948286,500.0,0.00030136,120]
[392308173,1761323956496,500.0,0.00030136,120]
[392308174,1761323966568,500.0,0.00030136,120]
[392308175,1761324183827,222.27960646,0.00018335,2]
[392308176,1761324186270,400.10329163,0.00018335,2]
[392308177,1761324188505,711.29474067,0.00018335,2]
[392308178,1761324209461,150.0,0.00015887,30]
[392308179,1761324209868,150.0,0.00016643,30]
[392308180,1761324280157,150.0,0.00015886,30]
[392308181,1761324280588,150.0,0.00016643,30]
[392308182,1761324280982,150.0,0.00017399,30]
[392308183,1761324281677,150.0,0.00018156,30]
[392308184,1761324281820,150.0,0.00018912,30]
[392308185,1761324282228,150.0,0.00019669,30]
[392308186,1761324351929,150.0,0.00015839,30]
[392308187,1761324352342,150.0,0.00016593,30]
[392308188,1761324352820,150.0,0.00017347,30]
[392308189,1761324353285,150.0,0.00018101,30]
[392308190,1761324422640,150.0,0.00012547,30]
[392308191,1761324423066,150.0,0.00013144,30]
[392308193,1761324491092,150.0,0.00015921,30]
[392308223,1761324632679,-395.20118848,0.00018784,2]
[392308224,1761324632689,-359.55122048,0.00018834,2]
[392308225,1761324632698,-218.81517735,0.00018884,2]
[392308226,1761324632709,-300.0,0.00018983,2]
[392308227,1761324632718,-150.0,0.00018984,2]
[392308228,1761324632728,-6040.94027494,0.00018984,2]
[392308229,1761324632737,-812.0,0.00019,2]
[392308230,1761324632746,-1120.08040078,0.00019115,2]
[392308231,1761324632756,-1861.36631657,0.00019121,2]
[392308232,1761324632766,-500.0,0.00019171,2]
[392308233,1761324632775,-393.61,0.00019171,2]
[392308234,1761324632786,-647.51133077,0.00019171,2]
[392308235,1761324632797,-500.0,0.00019173,2]
[392308236,1761324632807,-500.0,0.00019173,2]
[392308237,1761324632816,-500.0,0.00019173,2]
[392308238,1761324632827,-500.0,0.00019173,2]
[392308239,1761324632836,-501.52463229,0.00019173,2]
[392308240,1761324632846,-198.32272069,0.00019173,2]
[392308241,1761324632856,-500.0,0.00019173,2]
[392308242,1761324632866,-500.0,0.00019173,2]
[392308243,1761324632875,-501.45051734,0.00019173,2]
[392308244,1761324632885,-500.0,0.00019173,2]
[392308245,1761324632895,-500.0,0.00019173,2]
[392308246,1761324632905,-500.0,0.00019173,2]
[392308247,1761324632915,-500.0,0.00019173,2]
[392308248,1761324632925,-500.0,0.00019173,2]
[392308249,1761324632935,-500.0,0.00019173,2]
[392308250,1761324632945,-500.0,0.00019173,2]
[392308251,1761324632954,-500.0,0.00019173,2]
[392308252,1761324632964,-500.0,0.00019173,2]
[392308253,1761324632973,-500.0,0.00019173,2]
[392308254,1761324632983,-500.0,0.00019173,2]
[392308255,1761324632992,-481.13614356,0.00019173,2]
[392308256,1761324633002,-500.0,0.00019173,2]
[392308257,1761324633012,-502.17932592,0.00019173,2]
[392308258,1761324633022,-171.12628501,0.00019188,2]
[392308259,1761324633031,-256.95071066,0.00019188,2]
[392308260,1761324633041,-592.67320669,0.0001919,2]
[392308261,1761324633050,-218.23894108,0.0001919,2]
[392308262,1761324633059,-822.79,0.0001919,3]
[392308263,1761324633069,-764.03,0.0001919,3]
[392308264,1761324633079,-382.01,0.0001919,3]
[392308265,1761324633088,-764.06,0.0001919,3]
[392308266,1761324633097,-1861.36631653,0.00019191,2]
[392308267,1761324633106,-160.0,0.00019195,2]
[392308268,1761324633116,-228.38784502,0.00019199,2]
[392308269,1761324633125,-192.45757791,0.00019199,2]
[392308270,1761324633134,-184014.90951647,0.000192,2]
[392308271,1761324633337,7466.33236124,0.00018277,2]
[392308272,1761324633361,2969.02109416,0.00018277,2]
[392308281,1761324638592,-58343.90378098,0.000192,2]
[392308282,1761324638605,-3594.981948,0.000192,2]
[392308287,1761324640646,-20851.41625219,0.000192,2]
[392308861,1761324646774,-103194.78850236,0.000192,2]
[392308863,1761324646784,-500.0,0.000192,2]
[392308865,1761324646793,-1861.36631653,0.00019261,2]
[392308867,1761324646804,-358.9017772,0.00019298,2]
[392308869,1761324646814,-202.218795,0.00019298,2]
[392308871,1761324646823,-969.5176144,0.00019298,2]
[392308873,1761324646833,-227.4961443,0.00019298,2]
[392308874,1761324646842,-500.0,0.00019298,2]
[392308876,1761324646851,-506.40423059,0.00019299,2]
[392308878,1761324646861,-151.0,0.00019299,2]
[392308880,1761324646870,-151.0,0.00019299,2]
[392308882,1761324646879,-500.0,0.00019299,2]
[392308884,1761324646889,-151.0,0.00019299,2]
[392308886,1761324646898,-160.33298266,0.00019299,2]
[392308908,1761324647102,-500.0,0.00019299,2]
[392308910,1761324647112,-151.0,0.00019299,2]
[392308912,1761324647121,-153.08502396,0.00019299,2]
[392308914,1761324647131,-151.0,0.000193,2]
[392308916,1761324647141,-241.07551424,0.000193,2]
[392308918,1761324647150,-433.93592563,0.000193,2]
[392308920,1761324647159,-771.44164557,0.000193,2]
[392308922,1761324647168,-1205.3775712,0.000193,2]
[392308924,1761324647178,-1735.74370252,0.000193,2]
[392308926,1761324647188,-2362.54003955,0.000193,2]
[392308928,1761324647197,-64395.56949428,0.00019305,2]
[392308930,1761324647207,-151.0,0.00019305,7]
[392308932,1761324647217,-151.0,0.00019305,7]
[392308934,1761324647226,-151.0,0.00019305,7]
[392308936,1761324647236,-3085.76658226,0.00019324,2]
[392308937,1761324647244,-1861.36631653,0.0001933,2]
[392308938,1761324647253,-151.0,0.00019354,2]
[392308939,1761324647263,-152.96297762,0.00019354,2]
[392308940,1761324647272,-500.0,0.00019354,2]
[392308941,1761324647281,-296.20734856,0.00019354,2]
[392308942,1761324647290,-500.0,0.00019354,2]
[392308943,1761324647299,-153.08676549,0.00019354,2]
[392308945,1761324647309,-46282.3573639,0.00019371,2]
[392308947,1761324647318,-151.0,0.00019371,7]
[392308949,1761324647327,-245.0,0.00019371,7]
[392308951,1761324647337,-185.657161,0.00019371,7]
[392308953,1761324647347,-1155.261505,0.00019371,7]
[392308955,1761324647356,-1155.261505,0.00019371,7]
[392308957,1761324647366,-1155.261505,0.00019371,7]
[392308959,1761324647378,-1155.261505,0.00019371,7]
[392308961,1761324647387,-151.0,0.00019371,7]
[392308964,1761324647398,-151.0,0.00019371,7]
[392308965,1761324647408,-151.0,0.00019371,7]
[392308968,1761324647418,-3905.42333068,0.000194,2]
[392308970,1761324647427,-255.0,0.000194,2]
[392308971,1761324647441,-1861.36631653,0.000194,2]
[392308974,1761324647450,-151.0,0.00019409,2]
[392308975,1761324647459,-500.0,0.00019409,2]
[392308977,1761324647469,-500.0,0.00019409,2]
[392308979,1761324647478,-496.2026177,0.00019425,5]
[392308981,1761324647487,-151.0,0.00019463,2]
[392308983,1761324647497,-227.14825108,0.00019463,2]
[392308985,1761324647507,-500.0,0.00019463,2]
[392308987,1761324647516,-408.8299682,0.00019473,2]
[392308989,1761324647526,-508.78890592,0.00019473,2]
[392308991,1761324647535,-500.0,0.00019473,2]
[392308993,1761324647544,-500.0,0.00019473,2]
[392308996,1761324647555,-500.0,0.00019473,2]
[392308998,1761324647564,-303.30763298,0.00019473,2]
[392309000,1761324647573,-501.40609978,0.00019473,2]
[392309002,1761324647583,-500.0,0.00019473,2]
[392309004,1761324647593,-500.0,0.00019473,2]
[392309006,1761324647602,-500.0,0.00019473,2]
[392309008,1761324647612,-501.28660421,0.00019473,2]
[392309009,1761324647622,-259.40421667,0.00019473,2]
[392309011,1761324647630,-501.33338905,0.00019473,2]
[392309013,1761324647639,-503.27647061,0.00019473,2]
[392309016,1761324647649,-501.11507582,0.00019473,2]
[392309017,1761324647658,-502.2758091,0.00019473,2]
[392309019,1761324647667,-158.2486813,0.00019473,2]
[392309021,1761324647676,-500.0,0.00019473,2]
[392309024,1761324647687,-500.0,0.00019473,2]
[392309026,1761324647697,-502.90136551,0.00019473,2]
[392309028,1761324647706,-500.0,0.00019473,2]
[392309030,1761324647716,-158.45174576,0.00019473,2]
[392309032,1761324647726,-513.62804365,0.00019473,2]
[392309034,1761324647735,-500.0,0.00019473,2]
[392309036,1761324647744,-515.42289186,0.00019473,2]
[392309038,1761324647753,-500.0,0.00019473,2]
[392309039,1761324647762,-591.50388162,0.00019473,2]
[392309041,1761324647771,-181.55043261,0.00019473,2]
[392309044,1761324647781,-500.0,0.00019473,2]
[392309046,1761324647791,-500.0,0.00019474,2]
[392309048,1761324647802,-4821.51028479,0.00019474,2]
[392309050,1761324647812,-200000.0,0.000195,2]
[392309052,1761324647821,-151.0,0.000195,7]
[392309054,1761324647831,-1155.261505,0.000195,7]
[392309056,1761324647841,-1155.261505,0.000195,7]
[392309058,1761324647850,-1155.261505,0.000195,7]
[392309060,1761324647860,-1155.261505,0.000195,7]
[392309062,1761324647870,-403.33096709,0.000195,7]
[392309064,1761324647879,-151.0,0.000195,7]
[392309066,1761324647889,-151.0,0.000195,7]
[392309068,1761324647898,-217.61343685,0.000195,7]
[392309070,1761324647907,-1120.08040076,0.00019508,2]
[392309072,1761324647916,-289.30509024,0.00019518,2]
[392309074,1761324647926,-500.0,0.00019518,2]
[392309076,1761324647938,-5834.02744459,0.00019549,2]
[392309078,1761324647947,-302.51602579,0.00019571,2]
[392309080,1761324647956,-500.0,0.00019572,2]
[392309082,1761324647965,-500.0,0.00019573,2]
[392309084,1761324647977,-176.54605124,0.000196,2]
[392309086,1761324647987,-6942.97481009,0.00019624,2]
[392309088,1761324647996,-500.0,0.00019628,2]
[392309090,1761324648006,-500.0,0.00019683,2]
[392309092,1761324648015,-8148.35238129,0.00019699,2]
[392309094,1761324648025,-1000.0,0.00019721,2]
[392309096,1761324648034,-501.63145167,0.00019721,2]
[392309098,1761324648044,-1000.0,0.00019721,2]
[392309100,1761324648053,-1000.0,0.00019721,2]
[392309102,1761324648063,-500.0,0.00019721,2]
[392309104,1761324648073,-502.46205487,0.00019721,2]
[392309106,1761324648083,-507.57033413,0.00019721,2]
[392309108,1761324648092,-1000.0,0.00019721,2]
[392309110,1761324648101,-500.0,0.00019721,2]
[392309112,1761324648110,-500.0,0.00019737,2]
[392309114,1761324648120,-300.0,0.00019759,2]
[392309116,1761324648129,-300.0,0.00019759,2]
[392309118,1761324648139,-300.0,0.00019759,2]
[392309120,1761324648150,-300.0,0.00019759,2]
[392309122,1761324648160,-300.0,0.00019759,2]
[392309124,1761324648169,-300.0,0.00019759,2]
[392309126,1761324648179,-300.0,0.00019759,2]
[392309128,1761324648187,-300.0,0.00019759,2]
[392309130,1761324648197,-300.0,0.00019759,2]
[392309132,1761324648207,-300.0,0.00019759,2]
[392309134,1761324648216,-300.0,0.00019759,2]
[392309136,1761324648226,-300.0,0.00019759,2]
[392309138,1761324648236,-300.0,0.00019759,2]
[392309140,1761324648246,-300.0,0.00019759,2]
[392309142,1761324648256,-300.0,0.00019759,2]
[392309144,1761324648265,-9450.16015818,0.00019773,2]
[392309146,1761324648274,-600.0,0.00019775,2]
[392309148,1761324648283,-520.07678697,0.00019792,2]
[392309150,1761324648292,-113655.86305886,0.000198,2]
[392309777,1761325223837,666.0,0.00018073,2]
[392309778,1761325223996,419.60799615,0.00018398,6]
[392309781,1761325468588,1086.295793,0.00013699,2]
[392309783,1761325549130,1000.0,0.0003013,120]
[392309784,1761325550122,1000.0,0.0003013,120]
[392309785,1761325554490,1000.0,0.0003013,120]
[392309786,1761325555285,1000.0,0.0003013,120]
[392309787,1761325556044,1000.0,0.0003013,120]
[392309788,1761325556798,1000.0,0.0003013,120]
[392309789,1761325557486,1000.0,0.0003013,120]
[392309790,1761325560198,1000.0,0.0003013,120]
[392309791,1761325561980,1000.0,0.0003013,120]
[392309792,1761325566289,1000.0,0.0003013,120]
[392309793,1761325567272,1000.0,0.0003013,120]
[392309794,1761325568173,1000.0,0.0003013,120]
[392309795,1761325726231,4098.6012972,0.000185,2]
[392309796,1761325824971,3776.47196536,0.00018771,6]
[392309844,1761325832118,-373.3601336,0.00018973,2]
[392309845,1761325832127,-364.4748522,0.00018987,2]
[392309846,1761325832137,-150.0,0.00019051,2]
[392309847,1761325832146,-300.0,0.00019062,2]
[392309848,1761325832155,-3893.55,0.00019063,3]
[392309849,1761325832165,-1946.77,0.00019063,3]
[392309850,1761325832174,-973.39,0.00019063,3]
[392309851,1761325832184,-486.69,0.00019063,3]
[392309852,1761325832193,-243.35,0.00019063,3]
[392309853,1761325832202,-730.05,0.00019063,3]
[392309854,1761325832211,-50000.0,0.00019072,2]
[392309855,1761325832220,-159.87149151,0.00019072,2]
[392309856,1761325832229,-123584.31065022,0.00019073,2]
[392309858,1761325837585,-246415.68934978,0.00019073,2]
[392309859,1761325837595,-500.0,0.00019073,2]
[392309860,1761325837605,-500.0,0.00019073,2]
[392309861,1761325837615,-500.0,0.00019073,2]
[392309862,1761325837625,-500.0,0.00019073,2]
[392309863,1761325837635,-169.87707335,0.00019073,2]
[392309864,1761325837645,-500.0,0.00019073,2]
[392309865,1761325837655,-531.45175659,0.00019073,2]
[392309866,1761325837664,-195.03671925,0.00019173,2]
[392309867,1761325837674,-324.07357032,0.00019173,2]
[392309868,1761325837685,-500.0,0.00019178,2]
[392309869,1761325837694,-500.0,0.00019178,2]
[392309870,1761325837705,-500.0,0.00019178,2]
[392309871,1761325837715,-500.0,0.00019178,2]
[392309872,1761325837725,-500.0,0.00019178,2]
[392309873,1761325837735,-500.0,0.00019178,2]
[392309874,1761325837744,-500.0,0.00019178,2]
[392309875,1761325837754,-500.0,0.00019178,2]
[392309876,1761325837763,-500.0,0.00019178,2]
[392309877,1761325837773,-500.0,0.00019178,2]
[392309878,1761325837782,-500.0,0.00019178,2]
[392309879,1761325837791,-500.0,0.00019178,2]
[392309880,1761325837801,-500.0,0.00019178,2]
[392309881,1761325837811,-500.0,0.00019178,2]
[392309882,1761325837821,-500.0,0.00019178,2]
[392309883,1761325837831,-500.0,0.00019178,2]
[392309884,1761325837841,-500.0,0.00019178,2]
[392309885,1761325837851,-500.0,0.00019178,2]
[392309886,1761325837867,-500.0,0.00019178,2]
[392309887,1761325837884,-500.0,0.00019178,2]
[392309888,1761325837899,-587.38053382,0.00019178,2]
[392309889,1761325837910,-150.86007013,0.00019178,2]
[392309890,1761325837930,-168.0,0.00019226,2]
[392309891,1761325837944,-168.0,0.00019267,2]
[392309892,1761325837959,-168.0,0.00019283,2]
[392309893,1761325837973,-168.0,0.00019341,2]
[392309894,1761325837987,-500.0,0.00019341,2]
[392309895,1761325838003,-168.0,0.00019375,2]
[392309896,1761325838016,-168.0,0.00019414,2]
[392309897,1761325838031,-373.36013358,0.00019437,2]
[392309898,1761325838044,-168.0,0.00019518,2]
[392309899,1761325838060,-168.0,0.00019522,2]
[392309900,1761325838078,-168.0,0.00019549,2]
[392309901,1761325838089,-300.0,0.00019573,2]
[392309902,1761325838103,-300.0,0.00019573,2]
[392309903,1761325838120,-300.0,0.00019573,2]
[392309904,1761325838136,-300.0,0.00019573,2]
[392309905,1761325838152,-300.0,0.00019573,2]
[392309906,1761325838168,-300.0,0.00019573,2]
[392309907,1761325838184,-300.0,0.00019573,2]
[392309908,1761325838198,-300.0,0.00019573,2]
[392309909,1761325838209,-300.0,0.00019573,2]
[392309910,1761325838222,-300.0,0.00019573,2]
[392309911,1761325838237,-300.0,0.00019573,2]
[392309912,1761325838253,-300.0,0.00019573,2]
[392309913,1761325838264,-300.0,0.00019573,2]
[392309914,1761325838277,-300.0,0.00019573,2]
[392309915,1761325838292,-300.0,0.00019573,2]
[392309916,1761325838305,-600.0,0.00019573,2]
[392309917,1761325838316,-178.61782781,0.00019586,2]
[392309918,1761325838330,-500.0,0.00019615,2]
[392309919,1761325838351,-1007.01973674,0.00019621,2]
[392309920,1761325838365,-1000.0,0.00019621,2]
[392309921,1761325838380,-168.0,0.00019626,2]
[392309922,1761325838394,-168.0,0.00019639,2]
[392309923,1761325838408,-10848.39814077,0.0001965,2]
[392309924,1761325838422,-284.74264546,0.0001965,2]
[392309925,1761325838436,-168.0,0.00019708,2]
[392309926,1761325838449,-313.264,0.00019726,2]
[392309927,1761325838463,-226.1820632,0.00019757,2]
[392309928,1761325838476,-202.2187952,0.00019757,2]
[392309929,1761325838489,-2397.8757615,0.00019757,2]
[392309930,1761325838502,-10768.9311806,0.00019757,2]
[392309931,1761325838515,-2908.5528433,0.00019757,2]
[392309932,1761325838528,-500.0,0.00019773,2]
[392309933,1761325838541,-501.34214115,0.00019773,2]
[392309934,1761325838555,-500.0,0.00019773,2]
[392309935,1761325838567,-500.0,0.00019773,2]
[392309936,1761325838580,-501.54428826,0.00019773,2]
[392309937,1761325838593,-501.84557527,0.00019773,2]
[392309938,1761325838606,-500.0,0.00019773,2]
[392309939,1761325838620,-502.24080231,0.00019773,2]
[392309940,1761325838633,-151.0,0.00019792,2]
[392309941,1761325838646,-4652.0,0.00019797,2]
[392309942,1761325838660,-86344.13694114,0.000198,2]
[392309943,1761325838672,-151.0,0.000198,7]
[392309944,1761325838685,-693.156903,0.000198,7]
[392309945,1761325838698,-693.156903,0.000198,7]
[392309946,1761325838711,-693.156903,0.000198,7]
[392309947,1761325838725,-693.156903,0.000198,7]
[392309948,1761325838737,-151.0,0.000198,7]
[392309949,1761325838750,-329.70685488,0.00019818,2]
[392309950,1761325838764,-151.0,0.00019847,2]
[392309951,1761325838778,-500.0,0.00019889,2]
[392309952,1761325838791,-250.0,0.00019892,2]
[392309953,1761325838804,-7388.02848224,0.000199,2]
[392309954,1761325838817,-373.36013358,0.000199,2]
[392309955,1761325838831,-198.0,0.00019902,2]
[392309956,1761325838843,-150.0,0.00019916,2]
[392309957,1761325838856,-6707.01421048,0.00019923,6]
[392309958,1761325838868,-293.70649122,0.00019959,6]
[392309959,1761325838881,-2000.0,0.0002,7]
[392309960,1761325838895,-59684.37014927,0.0002,2]
[392309961,1761325838909,-765.58965799,0.0002,2]
[392309962,1761325838922,-111339.7207889,0.0002,2]
[392310268,1761325842973,-262.3737388,0.00019178,2]
[392310270,1761325842983,-1866.8954598,0.00019307,2]
[392310272,1761325842993,-1025.38817871,0.00019565,2]
[392312764,1761325992059,908.760702,0.00018634,2]
[392312765,1761326486704,150.0,0.00016125,30]
[392312766,1761326486942,150.0,0.00016893,30]
[392312767,1761326487663,150.0,0.00017661,30]
[392312768,1761326488067,150.0,0.00018429,30]
[392312769,1761326488578,150.0,0.00019197,30]
[392312770,1761326488982,150.0,0.00019965,30]
[392312771,1761326489397,161.63,0.00020733,30]
[392312772,1761326494852,5000.0,0.000187,2]
[392312773,1761326517182,5000.0,0.000187,2]
[392312774,1761326525559,0.01,0.00018699,2]
[392312775,1761326525581,299.99,0.00018699,2]
[392312776,1761326539972,5000.0,0.000187,2]
[392312777,1761326544013,4622.28770115,0.0001867,2]
[392312778,1761326551701,77.73229885,0.00018699,2]
[392312779,1761326551725,132.53691303,0.00018699,2]
[392312780,1761326553428,335.71982481,0.00018699,2]
[392312781,1761326553458,371.17763406,0.00018699,2]
[392312782,1761326553490,500.0,0.00018699,2]
[392312783,1761326553524,500.0,0.00018699,2]
[392312784,1761326553558,549.54718955,0.00018699,2]
[392312785,1761326553601,479.70192605,0.00018699,2]
[392312786,1761326553631,647.74675954,0.00018699,2]
[392312787,1761326557836,1200.0,0.00018699,2]
[392312788,1761326561800,150.0,0.00016127,30]
[392312789,1761326562228,150.0,0.00016895,30]
[392312790,1761326562267,5000.0,0.000187,2]
[392312791,1761326562630,150.0,0.00017663,30]
[392312792,1761326563031,150.0,0.00018431,30]
[392312793,1761326563443,162.38,0.00019199,30]